[Event "Early-Titled-Tuesday-Blitz-August-29-2023"]
[Site "Chess.com"]
[Date "2023.08.29"]
[Round "6"]
[White "Doomfist26"]
[Black "assezde36"]
[Result "1-0"]
[WhiteElo "2593"]
[BlackElo "2806"]
[TimeControl "180+1"]
[EndTime "9:06:11 PDT"]
[Termination "Doomfist26 won on time"]

1. e4 {[%clk 0:03:00.9]} 1... c5 {[%clk 0:02:58.6]} 2. Nf3 {[%clk 0:03:00.9]}
2... e6 {[%clk 0:02:59.2]} 3. d4 {[%clk 0:03:00.7]} 3... cxd4 {[%clk 0:03:00.1]}
4. Nxd4 {[%clk 0:03:01.4]} 4... a6 {[%clk 0:03:00.7]} 5. c4 {[%clk 0:03:01.6]}
5... Nf6 {[%clk 0:03:00.2]} 6. Nc3 {[%clk 0:03:02.3]} 6... d6 {[%clk 0:02:59.9]}
7. a3 {[%clk 0:02:59.6]} 7... Be7 {[%clk 0:02:59.9]} 8. Be3 {[%clk 0:02:55.3]}
8... Qc7 {[%clk 0:02:59.2]} 9. f4 {[%clk 0:02:54.9]} 9... Nbd7 {[%clk
0:02:56.9]} 10. Bd3 {[%clk 0:02:42.7]} 10... b6 {[%clk 0:02:54.3]} 11. O-O
{[%clk 0:02:36.5]} 11... Bb7 {[%clk 0:02:54.2]} 12. f5 {[%clk 0:02:37]} 12... e5
{[%clk 0:02:37.3]} 13. Nf3 {[%clk 0:02:31.7]} 13... Ng4 {[%clk 0:02:34.5]} 14.
Bf2 {[%clk 0:02:12.9]} 14... Nxf2 {[%clk 0:02:34.3]} 15. Rxf2 {[%clk 0:02:12.7]}
15... Nf6 {[%clk 0:02:19.9]} 16. b4 {[%clk 0:02:07]} 16... b5 {[%clk 0:02:10.9]}
17. cxb5 {[%clk 0:02:03.9]} 17... O-O {[%clk 0:02:00.5]} 18. Rc1 {[%clk
0:01:59.6]} 18... Qb6 {[%clk 0:01:52.9]} 19. Na4 {[%clk 0:01:54.2]} 19... Qe3
{[%clk 0:01:53]} 20. Qd2 {[%clk 0:01:45.9]} 20... Qxd2 {[%clk 0:01:48.6]} 21.
Nxd2 {[%clk 0:01:46]} 21... axb5 {[%clk 0:01:49]} 22. Bxb5 {[%clk 0:01:44.3]}
22... Nxe4 {[%clk 0:01:46.2]} 23. Rc7 {[%clk 0:01:26.2]} 23... Bh4 {[%clk
0:00:35.7]} 24. g3 {[%clk 0:01:19.2]} 24... Bg5 {[%clk 0:00:35]} 25. Rxb7 {[%clk
0:01:11.4]} 25... Nxd2 {[%clk 0:00:31.4]} 26. Kg2 {[%clk 0:01:05]} 26... e4
{[%clk 0:00:30.5]} 27. Bc6 {[%clk 0:01:03.8]} 27... e3 {[%clk 0:00:30.5]} 28.
Re2 {[%clk 0:01:02.9]} 28... Rfc8 {[%clk 0:00:30.3]} 29. Nb6 {[%clk 0:01:00.5]}
29... Rxc6 {[%clk 0:00:24.8]} 30. Nxa8 {[%clk 0:01:00.7]} 30... h5 {[%clk
0:00:25]} 31. b5 {[%clk 0:00:58.3]} 31... Rc3 {[%clk 0:00:15]} 32. b6 {[%clk
0:00:56.8]} 32... Rxa3 {[%clk 0:00:13.9]} 33. Ra7 {[%clk 0:00:55.9]} 33... Rb3
{[%clk 0:00:13.8]} 34. b7 {[%clk 0:00:56.2]} 34... Kh7 {[%clk 0:00:09.5]} 35.
Nc7 {[%clk 0:00:54.1]} 35... d5 {[%clk 0:00:04]} 36. Nxd5 {[%clk 0:00:52.7]}
36... Nc4 {[%clk 0:00:04.1]} 37. h4 {[%clk 0:00:46.9]} 37... Bh6 {[%clk
0:00:04.5]} 38. f6 {[%clk 0:00:45.9]} 38... gxf6 {[%clk 0:00:04.1]} 39. Nxf6+
{[%clk 0:00:46]} 39... Kg6 {[%clk 0:00:04.7]} 40. Nd7 {[%clk 0:00:46.7]} 40...
Rb2 {[%clk 0:00:01.8]} 41. Rxb2 {[%clk 0:00:45.4]} 41... Nxb2 {[%clk 0:00:02.7]}
42. b8=Q {[%clk 0:00:45.8]} 42... e2 {[%clk 0:00:03.6]} 43. Qe5 {[%clk
0:00:44.5]} 1-0

[Event "Early-Titled-Tuesday-Blitz-August-29-2023"]
[Site "Chess.com"]
[Date "2023.08.29"]
[Round "6"]
[White "FeketeBarika"]
[Black "HajiyevKanan"]
[Result "1-0"]
[WhiteElo "2353"]
[BlackElo "2486"]
[TimeControl "180+1"]
[EndTime "9:06:11 PDT"]
[Termination "FeketeBarika won by checkmate"]

1. Nf3 {[%clk 0:03:00.9]} 1... d5 {[%clk 0:02:59.3]} 2. c4 {[%clk 0:02:59.2]}
2... c6 {[%clk 0:02:58.7]} 3. g3 {[%clk 0:02:58.8]} 3... Nf6 {[%clk 0:02:59.3]}
4. Bg2 {[%clk 0:02:58.7]} 4... g6 {[%clk 0:03:00]} 5. O-O {[%clk 0:02:58.2]}
5... Bg7 {[%clk 0:03:00.7]} 6. cxd5 {[%clk 0:02:58.2]} 6... cxd5 {[%clk
0:03:01.6]} 7. d4 {[%clk 0:02:56.8]} 7... O-O {[%clk 0:03:02.5]} 8. Bf4 {[%clk
0:02:56.3]} 8... Nc6 {[%clk 0:03:02.2]} 9. Ne5 {[%clk 0:02:55.6]} 9... e6 {[%clk
0:02:59.8]} 10. Nc3 {[%clk 0:02:55.4]} 10... Nxe5 {[%clk 0:02:58.7]} 11. dxe5
{[%clk 0:02:53.8]} 11... Nd7 {[%clk 0:02:58]} 12. Qd4 {[%clk 0:02:49.9]} 12...
Qb6 {[%clk 0:02:57.3]} 13. e3 {[%clk 0:02:38.3]} 13... a6 {[%clk 0:02:32.9]} 14.
Qxb6 {[%clk 0:02:31.8]} 14... Nxb6 {[%clk 0:02:32.8]} 15. e4 {[%clk 0:02:23.1]}
15... d4 {[%clk 0:02:20.4]} 16. Ne2 {[%clk 0:02:18.8]} 16... d3 {[%clk 0:02:19]}
17. Nc3 {[%clk 0:02:19.1]} 17... h6 {[%clk 0:02:17.5]} 18. h4 {[%clk 0:02:12.8]}
18... Nc4 {[%clk 0:02:17.5]} 19. Rfd1 {[%clk 0:02:05.8]} 19... Rd8 {[%clk
0:01:54.8]} 20. Bf1 {[%clk 0:01:48.3]} 20... Nxb2 {[%clk 0:01:51.2]} 21. Rd2
{[%clk 0:01:46.2]} 21... Nc4 {[%clk 0:01:51.4]} 22. Rxd3 {[%clk 0:01:45.8]}
22... Rxd3 {[%clk 0:01:51.6]} 23. Bxd3 {[%clk 0:01:45.9]} 23... Nxe5 {[%clk
0:01:52.5]} 24. Be2 {[%clk 0:01:37.7]} 24... Bd7 {[%clk 0:01:41]} 25. Rd1 {[%clk
0:01:34.7]} 25... Bc6 {[%clk 0:01:39.3]} 26. f3 {[%clk 0:01:13.1]} 26... g5
{[%clk 0:00:56.9]} 27. hxg5 {[%clk 0:01:08.9]} 27... hxg5 {[%clk 0:00:57.8]} 28.
Bxg5 {[%clk 0:01:08.3]} 28... Nxf3+ {[%clk 0:00:58.4]} 29. Bxf3 {[%clk
0:01:08.7]} 29... Bxc3 {[%clk 0:00:59.1]} 30. Kg2 {[%clk 0:01:06.5]} 30... Kg7
{[%clk 0:00:58.8]} 31. Bf4 {[%clk 0:01:03.5]} 31... Bf6 {[%clk 0:00:41.3]} 32.
e5 {[%clk 0:01:02.6]} 32... Bxf3+ {[%clk 0:00:40]} 33. Kxf3 {[%clk 0:01:03.5]}
33... Bd8 {[%clk 0:00:35.3]} 34. Rd7 {[%clk 0:01:04.1]} 34... b5 {[%clk
0:00:34.4]} 35. Rb7 {[%clk 0:00:58.9]} 35... Ba5 {[%clk 0:00:29.9]} 36. Kg4
{[%clk 0:00:54.3]} 36... Kg6 {[%clk 0:00:28.8]} 37. Bg5 {[%clk 0:00:46]} 37...
Bc3 {[%clk 0:00:23.8]} 38. Bf6 {[%clk 0:00:45.9]} 38... b4 {[%clk 0:00:24.3]}
39. Rc7 {[%clk 0:00:41.7]} 39... a5 {[%clk 0:00:20.1]} 40. Rc4 {[%clk
0:00:40.9]} 40... a4 {[%clk 0:00:19.6]} 41. a3 {[%clk 0:00:39.1]} 41... Rb8
{[%clk 0:00:12.4]} 42. Kf3 {[%clk 0:00:39.2]} 42... b3 {[%clk 0:00:06.7]} 43.
Rg4+ {[%clk 0:00:36]} 43... Kf5 {[%clk 0:00:05.2]} 44. Rg5# {[%clk 0:00:34.8]}
1-0

[Event "Early-Titled-Tuesday-Blitz-August-29-2023"]
[Site "Chess.com"]
[Date "2023.08.29"]
[Round "6"]
[White "Mikedannnn"]
[Black "guillembaches"]
[Result "1-0"]
[WhiteElo "2585"]
[BlackElo "2435"]
[TimeControl "180+1"]
[EndTime "9:06:12 PDT"]
[Termination "Mikedannnn won on time"]

1. e4 {[%clk 0:02:58.6]} 1... c5 {[%clk 0:03:00.3]} 2. Nf3 {[%clk 0:02:55.3]}
2... d6 {[%clk 0:03:00.8]} 3. d4 {[%clk 0:02:53.5]} 3... cxd4 {[%clk 0:03:01.4]}
4. Nxd4 {[%clk 0:02:54.4]} 4... Nf6 {[%clk 0:03:01.9]} 5. Nc3 {[%clk 0:02:53.4]}
5... Nc6 {[%clk 0:03:02.5]} 6. Bc4 {[%clk 0:02:52.7]} 6... Bd7 {[%clk
0:03:01.9]} 7. Be3 {[%clk 0:02:46.8]} 7... Ng4 {[%clk 0:03:01.8]} 8. Qf3 {[%clk
0:02:32.3]} 8... Nce5 {[%clk 0:02:53.6]} 9. Qe2 {[%clk 0:02:27.4]} 9... Nxe3
{[%clk 0:02:49]} 10. fxe3 {[%clk 0:02:26.6]} 10... g6 {[%clk 0:02:24.6]} 11. Bb3
{[%clk 0:02:23.1]} 11... Bg7 {[%clk 0:02:24.4]} 12. O-O {[%clk 0:02:21.2]} 12...
O-O {[%clk 0:02:22.3]} 13. Nf3 {[%clk 0:02:21.5]} 13... a6 {[%clk 0:02:14.7]}
14. Rad1 {[%clk 0:02:20.2]} 14... Bc6 {[%clk 0:02:06.8]} 15. Nd4 {[%clk
0:02:09.4]} 15... Bd7 {[%clk 0:02:02.9]} 16. Nd5 {[%clk 0:02:03.9]} 16... e6
{[%clk 0:01:57]} 17. Nf4 {[%clk 0:01:57.8]} 17... Qe7 {[%clk 0:01:55.1]} 18. Nd3
{[%clk 0:01:54]} 18... Rad8 {[%clk 0:01:48]} 19. Nf3 {[%clk 0:01:45.5]} 19...
Bb5 {[%clk 0:01:28.5]} 20. Nfxe5 {[%clk 0:01:44.5]} 20... Bxe5 {[%clk
0:01:23.7]} 21. a4 {[%clk 0:01:31.3]} 21... Bc6 {[%clk 0:01:14.9]} 22. Nxe5
{[%clk 0:01:30.5]} 22... dxe5 {[%clk 0:01:15]} 23. Qc4 {[%clk 0:01:27.1]} 23...
Rxd1 {[%clk 0:01:07.8]} 24. Rxd1 {[%clk 0:01:25.5]} 24... Rd8 {[%clk 0:01:07.7]}
25. Rd3 {[%clk 0:01:24.6]} 25... Kg7 {[%clk 0:00:52.7]} 26. Qc3 {[%clk
0:01:23.7]} 26... f6 {[%clk 0:00:43.3]} 27. Qc4 {[%clk 0:01:08.6]} 27... Rxd3
{[%clk 0:00:34.9]} 28. cxd3 {[%clk 0:01:09.5]} 28... f5 {[%clk 0:00:26.3]} 29.
exf5 {[%clk 0:00:50.9]} 29... exf5 {[%clk 0:00:22.5]} 30. Qg8+ {[%clk
0:00:47.4]} 30... Kh6 {[%clk 0:00:22]} 31. h4 {[%clk 0:00:40.5]} 31... e4 {[%clk
0:00:07.4]} 32. d4 {[%clk 0:00:39.9]} 32... f4 {[%clk 0:00:07.5]} 33. exf4
{[%clk 0:00:35.9]} 33... e3 {[%clk 0:00:07.6]} 34. Qe6 {[%clk 0:00:35.8]} 1-0

[Event "Early-Titled-Tuesday-Blitz-August-29-2023"]
[Site "Chess.com"]
[Date "2023.08.29"]
[Round "6"]
[White "Mesa_1"]
[Black "FormerProdigy"]
[Result "0-1"]
[WhiteElo "2576"]
[BlackElo "2865"]
[TimeControl "180+1"]
[EndTime "9:06:14 PDT"]
[Termination "FormerProdigy won by resignation"]

1. e4 {[%clk 0:03:00.9]} 1... c6 {[%clk 0:02:57.5]} 2. d4 {[%clk 0:02:56.9]}
2... d5 {[%clk 0:02:58.4]} 3. e5 {[%clk 0:02:57.5]} 3... c5 {[%clk 0:02:58.2]}
4. Nf3 {[%clk 0:02:55.3]} 4... cxd4 {[%clk 0:02:55.6]} 5. Nxd4 {[%clk
0:02:56.2]} 5... Nc6 {[%clk 0:02:55.2]} 6. Nxc6 {[%clk 0:02:56.8]} 6... bxc6
{[%clk 0:02:56.1]} 7. Bd3 {[%clk 0:02:57]} 7... e6 {[%clk 0:02:55.4]} 8. O-O
{[%clk 0:02:56.5]} 8... Ne7 {[%clk 0:02:50.4]} 9. Nd2 {[%clk 0:02:57.1]} 9...
Ng6 {[%clk 0:02:44.2]} 10. Nf3 {[%clk 0:02:56.5]} 10... Be7 {[%clk 0:02:37.7]}
11. c3 {[%clk 0:02:56.7]} 11... c5 {[%clk 0:02:35.1]} 12. Qa4+ {[%clk
0:02:40.1]} 12... Bd7 {[%clk 0:02:35]} 13. Qg4 {[%clk 0:02:40.6]} 13... O-O
{[%clk 0:02:21.8]} 14. Bg5 {[%clk 0:02:14.6]} 14... Rb8 {[%clk 0:01:35.4]} 15.
h4 {[%clk 0:02:01.1]} 15... Bb5 {[%clk 0:01:18.4]} 16. Bxg6 {[%clk 0:01:50.6]}
16... hxg6 {[%clk 0:01:17.2]} 17. Rfe1 {[%clk 0:01:37.3]} 17... Bd3 {[%clk
0:01:12.4]} 18. b3 {[%clk 0:01:25]} 18... a5 {[%clk 0:00:59.8]} 19. Rad1 {[%clk
0:01:24.5]} 19... Bf5 {[%clk 0:00:53.4]} 20. Qf4 {[%clk 0:01:19.8]} 20... f6
{[%clk 0:00:37]} 21. exf6 {[%clk 0:01:16.7]} 21... gxf6 {[%clk 0:00:37.9]} 22.
Bh6 {[%clk 0:01:13.9]} 22... Rf7 {[%clk 0:00:38.2]} 23. g4 {[%clk 0:01:06.1]}
23... e5 {[%clk 0:00:38.3]} 24. Qg3 {[%clk 0:01:06.8]} 24... Be6 {[%clk
0:00:31.4]} 25. g5 {[%clk 0:01:07]} 25... Bd6 {[%clk 0:00:15.7]} 26. gxf6 {[%clk
0:01:06.9]} 26... Qxf6 {[%clk 0:00:16.6]} 27. Nxe5 {[%clk 0:01:03.7]} 27... Rh7
{[%clk 0:00:10.2]} 28. Bg5 {[%clk 0:01:02.1]} 28... Qf5 {[%clk 0:00:10.7]} 29.
Rd3 {[%clk 0:00:57.7]} 29... Rf8 {[%clk 0:00:10.3]} 30. Rf3 {[%clk 0:00:54]}
30... Qxf3 {[%clk 0:00:10.6]} 31. Qxf3 {[%clk 0:00:52.2]} 31... Rxf3 {[%clk
0:00:10.6]} 32. Nxf3 {[%clk 0:00:53.1]} 32... Bd7 {[%clk 0:00:08.8]} 33. Ne5
{[%clk 0:00:49.5]} 33... Bf5 {[%clk 0:00:08.2]} 34. Nxg6 {[%clk 0:00:47.6]}
34... d4 {[%clk 0:00:08.4]} 35. cxd4 {[%clk 0:00:45.1]} 35... cxd4 {[%clk
0:00:09.3]} 36. Re8+ {[%clk 0:00:36.9]} 36... Kf7 {[%clk 0:00:08.9]} 37. Rd8
{[%clk 0:00:37.7]} 37... Bc7 {[%clk 0:00:07.8]} 38. Nh8+ {[%clk 0:00:35.5]}
38... Kg7 {[%clk 0:00:07.8]} 39. Rc8 {[%clk 0:00:31.8]} 39... Bxc8 {[%clk
0:00:07.7]} 0-1

[Event "Early-Titled-Tuesday-Blitz-August-29-2023"]
[Site "Chess.com"]
[Date "2023.08.29"]
[Round "6"]
[White "TanitoluwaAps116"]
[Black "FGHSMN"]
[Result "1-0"]
[WhiteElo "2778"]
[BlackElo "2919"]
[TimeControl "180+1"]
[EndTime "9:06:17 PDT"]
[Termination "TanitoluwaAps116 won by resignation"]

1. e4 {[%clk 0:02:53.8]} 1... c5 {[%clk 0:02:59.6]} 2. Nf3 {[%clk 0:02:54.1]}
2... d6 {[%clk 0:03:00.3]} 3. Bb5+ {[%clk 0:02:54.5]} 3... Nd7 {[%clk
0:03:00.3]} 4. a4 {[%clk 0:02:53.1]} 4... a6 {[%clk 0:03:00.3]} 5. Be2 {[%clk
0:02:52.1]} 5... Ngf6 {[%clk 0:03:00.8]} 6. Nc3 {[%clk 0:02:52.5]} 6... g6
{[%clk 0:02:59.6]} 7. a5 {[%clk 0:02:52.7]} 7... Bg7 {[%clk 0:03:00.2]} 8. O-O
{[%clk 0:02:53.3]} 8... O-O {[%clk 0:03:00.9]} 9. d3 {[%clk 0:02:54]} 9... b5
{[%clk 0:03:00.2]} 10. axb6 {[%clk 0:02:54.5]} 10... Bb7 {[%clk 0:03:00.9]} 11.
Nd2 {[%clk 0:02:53.8]} 11... Nxb6 {[%clk 0:02:59.3]} 12. Nb3 {[%clk 0:02:49.6]}
12... Qc7 {[%clk 0:02:45.8]} 13. Na5 {[%clk 0:02:46.7]} 13... Nbd7 {[%clk
0:02:45.4]} 14. f4 {[%clk 0:02:37.9]} 14... Rab8 {[%clk 0:02:43.5]} 15. Nxb7
{[%clk 0:02:34.1]} 15... Qxb7 {[%clk 0:02:43.2]} 16. Bf3 {[%clk 0:02:28]} 16...
Qb6 {[%clk 0:02:37.7]} 17. Kh1 {[%clk 0:02:20.8]} 17... Rfc8 {[%clk 0:02:35]}
18. b3 {[%clk 0:02:03.7]} 18... Nxe4 {[%clk 0:02:09.4]} 19. Nd5 {[%clk
0:01:54.7]} 19... Qd8 {[%clk 0:02:09.4]} 20. Rxa6 {[%clk 0:01:50.7]} 20... Nef6
{[%clk 0:02:09.3]} 21. Re1 {[%clk 0:01:43.2]} 21... Nxd5 {[%clk 0:02:07.1]} 22.
Bxd5 {[%clk 0:01:44.1]} 22... Nf6 {[%clk 0:02:07]} 23. Bf3 {[%clk 0:01:39]}
23... e6 {[%clk 0:02:02.6]} 24. Bb2 {[%clk 0:01:31.3]} 24... d5 {[%clk
0:02:02.2]} 25. Be5 {[%clk 0:01:28.7]} 25... Ra8 {[%clk 0:02:02.6]} 26. Qa1
{[%clk 0:01:27.3]} 26... Rxa6 {[%clk 0:02:02.1]} 27. Qxa6 {[%clk 0:01:28.2]}
27... Ra8 {[%clk 0:02:02.9]} 28. Qc6 {[%clk 0:01:26.7]} 28... Qa5 {[%clk
0:02:01.9]} 29. Rf1 {[%clk 0:01:15.4]} 29... Ne8 {[%clk 0:01:58.7]} 30. g4
{[%clk 0:00:57.8]} 30... Bxe5 {[%clk 0:01:48.4]} 31. fxe5 {[%clk 0:00:58.7]}
31... Rd8 {[%clk 0:01:44.1]} 32. Bxd5 {[%clk 0:00:43]} 32... exd5 {[%clk
0:01:34.6]} 33. e6 {[%clk 0:00:43.2]} 33... f6 {[%clk 0:01:28]} 34. e7 {[%clk
0:00:30.2]} 34... Rb8 {[%clk 0:01:27.9]} 35. g5 {[%clk 0:00:22.6]} 35... c4
{[%clk 0:00:40.4]} 36. Qe6+ {[%clk 0:00:14.6]} 36... Kh8 {[%clk 0:00:39.6]} 37.
gxf6 {[%clk 0:00:09.8]} 37... h5 {[%clk 0:00:29.2]} 38. f7 {[%clk 0:00:08.5]}
38... Ng7 {[%clk 0:00:29.9]} 39. f8=Q+ {[%clk 0:00:07.8]} 39... Rxf8 {[%clk
0:00:27.8]} 40. exf8=Q+ {[%clk 0:00:06.9]} 40... Kh7 {[%clk 0:00:28.5]} 41.
Qeg8+ {[%clk 0:00:05.5]} 1-0

[Event "Early-Titled-Tuesday-Blitz-August-29-2023"]
[Site "Chess.com"]
[Date "2023.08.29"]
[Round "6"]
[White "GasconJR"]
[Black "GMKrikor"]
[Result "0-1"]
[WhiteElo "2667"]
[BlackElo "2868"]
[TimeControl "180+1"]
[EndTime "9:06:18 PDT"]
[Termination "GMKrikor won on time"]

1. Nf3 {[%clk 0:03:00.9]} 1... d5 {[%clk 0:02:52.4]} 2. g3 {[%clk 0:02:58.5]}
2... Nc6 {[%clk 0:02:52.3]} 3. d4 {[%clk 0:02:55.9]} 3... Bf5 {[%clk 0:02:52.2]}
4. Bg2 {[%clk 0:02:45.6]} 4... Nb4 {[%clk 0:02:52.5]} 5. O-O {[%clk 0:02:43.6]}
5... Bxc2 {[%clk 0:02:15.6]} 6. Qd2 {[%clk 0:02:42.9]} 6... e6 {[%clk
0:02:16.2]} 7. a3 {[%clk 0:02:38.6]} 7... Bxb1 {[%clk 0:02:16.2]} 8. Rxb1 {[%clk
0:02:39.3]} 8... Nc6 {[%clk 0:02:16.5]} 9. b4 {[%clk 0:02:40.2]} 9... a6 {[%clk
0:02:14.4]} 10. a4 {[%clk 0:02:24.1]} 10... Nf6 {[%clk 0:02:13.4]} 11. b5 {[%clk
0:02:22.3]} 11... axb5 {[%clk 0:02:13.2]} 12. axb5 {[%clk 0:02:23.2]} 12... Na5
{[%clk 0:02:13.3]} 13. Ne5 {[%clk 0:02:18.5]} 13... Bd6 {[%clk 0:02:05.6]} 14.
Qc2 {[%clk 0:02:02.5]} 14... O-O {[%clk 0:01:40.6]} 15. Bg5 {[%clk 0:01:57.4]}
15... h6 {[%clk 0:01:39.1]} 16. Bf4 {[%clk 0:01:56.7]} 16... Nd7 {[%clk
0:01:27.4]} 17. Rfc1 {[%clk 0:01:51.5]} 17... Bxe5 {[%clk 0:01:16]} 18. dxe5
{[%clk 0:01:46.1]} 18... Nc4 {[%clk 0:01:16.2]} 19. Qc3 {[%clk 0:01:08.5]} 19...
c6 {[%clk 0:01:10.9]} 20. e4 {[%clk 0:01:01.7]} 20... Qa5 {[%clk 0:01:00.7]} 21.
Qd4 {[%clk 0:00:34.4]} 21... Qa7 {[%clk 0:01:00.6]} 22. Rxc4 {[%clk 0:00:29]}
22... dxc4 {[%clk 0:00:53.2]} 23. Qxd7 {[%clk 0:00:29]} 23... Rfd8 {[%clk
0:00:34.1]} 24. Qe7 {[%clk 0:00:21.8]} 24... cxb5 {[%clk 0:00:34.5]} 25. Bf1
{[%clk 0:00:12.6]} 25... c3 {[%clk 0:00:23.8]} 26. Qb4 {[%clk 0:00:04]} 26...
Rac8 {[%clk 0:00:18.1]} 27. Rc1 {[%clk 0:00:03.5]} 27... Qd4 {[%clk 0:00:06]}
28. Qb3 {[%clk 0:00:01.6]} 28... b4 {[%clk 0:00:05.8]} 29. Be3 {[%clk
0:00:01.6]} 29... Qxe4 {[%clk 0:00:06]} 30. Bg2 {[%clk 0:00:02.1]} 30... Qc4
{[%clk 0:00:06.1]} 0-1

[Event "Early-Titled-Tuesday-Blitz-August-29-2023"]
[Site "Chess.com"]
[Date "2023.08.29"]
[Round "6"]
[White "AradNazari"]
[Black "Zhigalko_Sergei"]
[Result "0-1"]
[WhiteElo "2764"]
[BlackElo "2937"]
[TimeControl "180+1"]
[EndTime "9:06:20 PDT"]
[Termination "Zhigalko_Sergei won by resignation"]

1. e4 {[%clk 0:03:00.9]} 1... c5 {[%clk 0:02:59.7]} 2. Nf3 {[%clk 0:03:01.3]}
2... Nc6 {[%clk 0:03:00.3]} 3. Bb5 {[%clk 0:03:01.7]} 3... Nf6 {[%clk
0:03:00.5]} 4. Bxc6 {[%clk 0:03:00.7]} 4... dxc6 {[%clk 0:03:01.4]} 5. d3 {[%clk
0:03:01.1]} 5... Bg4 {[%clk 0:03:01.6]} 6. h3 {[%clk 0:03:01.1]} 6... Bh5 {[%clk
0:03:01.3]} 7. Be3 {[%clk 0:03:01.6]} 7... c4 {[%clk 0:02:57.4]} 8. e5 {[%clk
0:02:51.7]} 8... Nd5 {[%clk 0:02:55.6]} 9. dxc4 {[%clk 0:02:41.1]} 9... Nxe3
{[%clk 0:02:44.7]} 10. Qxd8+ {[%clk 0:02:41.4]} 10... Rxd8 {[%clk 0:02:45.3]}
11. fxe3 {[%clk 0:02:42]} 11... e6 {[%clk 0:02:38.4]} 12. Ke2 {[%clk 0:02:34]}
12... Bg6 {[%clk 0:02:19.5]} 13. Rc1 {[%clk 0:02:32]} 13... h5 {[%clk
0:02:11.8]} 14. Nbd2 {[%clk 0:02:24.5]} 14... h4 {[%clk 0:02:10]} 15. e4 {[%clk
0:02:10]} 15... Rh5 {[%clk 0:02:06.1]} 16. Rd1 {[%clk 0:02:09.2]} 16... Be7
{[%clk 0:01:55.6]} 17. c3 {[%clk 0:02:09]} 17... Bg5 {[%clk 0:01:46.6]} 18. Nxg5
{[%clk 0:01:33.9]} 18... Rxg5 {[%clk 0:01:46.2]} 19. Kf2 {[%clk 0:01:30]} 19...
Rxe5 {[%clk 0:01:40.7]} 20. Nf3 {[%clk 0:01:20]} 20... Rxe4 {[%clk 0:01:37]} 21.
Rxd8+ {[%clk 0:01:20.5]} 21... Kxd8 {[%clk 0:01:37.9]} 22. Rd1+ {[%clk
0:01:21.3]} 22... Ke7 {[%clk 0:01:33.3]} 23. Rd4 {[%clk 0:01:22.2]} 23... c5
{[%clk 0:01:22.2]} 24. Rxe4 {[%clk 0:01:20.2]} 24... Bxe4 {[%clk 0:01:23.1]} 25.
Nxh4 {[%clk 0:01:21]} 25... g5 {[%clk 0:01:17.7]} 26. Nf3 {[%clk 0:01:13.2]}
26... Bxf3 {[%clk 0:01:17.7]} 27. Kxf3 {[%clk 0:01:10]} 27... f5 {[%clk
0:01:14.5]} 28. g4 {[%clk 0:01:05.2]} 28... Kd6 {[%clk 0:01:09.3]} 29. b3 {[%clk
0:00:54.8]} 29... a5 {[%clk 0:01:03.2]} 30. a4 {[%clk 0:00:50.8]} 30... Ke5
{[%clk 0:01:00.4]} 31. Ke3 {[%clk 0:00:51.1]} 31... f4+ {[%clk 0:00:38.7]} 32.
Kf3 {[%clk 0:00:49]} 32... b6 {[%clk 0:00:38.7]} 33. Ke2 {[%clk 0:00:27.2]}
33... Ke4 {[%clk 0:00:38.7]} 34. Kf2 {[%clk 0:00:25]} 34... e5 {[%clk
0:00:30.3]} 35. b4 {[%clk 0:00:22.8]} 35... cxb4 {[%clk 0:00:15.9]} 36. cxb4
{[%clk 0:00:23.7]} 36... axb4 {[%clk 0:00:15.9]} 37. c5 {[%clk 0:00:24.3]} 37...
bxc5 {[%clk 0:00:13.3]} 38. a5 {[%clk 0:00:24.1]} 38... Kd5 {[%clk 0:00:10]} 39.
h4 {[%clk 0:00:24.6]} 39... b3 {[%clk 0:00:10.3]} 40. hxg5 {[%clk 0:00:25.3]}
40... b2 {[%clk 0:00:10.7]} 41. g6 {[%clk 0:00:26.1]} 41... b1=Q {[%clk
0:00:11]} 0-1

[Event "Early-Titled-Tuesday-Blitz-August-29-2023"]
[Site "Chess.com"]
[Date "2023.08.29"]
[Round "6"]
[White "tylityli"]
[Black "dosto07"]
[Result "1/2-1/2"]
[WhiteElo "2356"]
[BlackElo "2465"]
[TimeControl "180+1"]
[EndTime "9:06:23 PDT"]
[Termination "Game drawn by repetition"]

1. d4 {[%clk 0:03:00.9]} 1... d5 {[%clk 0:02:57.6]} 2. c4 {[%clk 0:02:59.6]}
2... dxc4 {[%clk 0:02:57.9]} 3. Nf3 {[%clk 0:02:58.9]} 3... Nf6 {[%clk 0:02:58]}
4. e3 {[%clk 0:02:59.2]} 4... e6 {[%clk 0:02:58.1]} 5. Bxc4 {[%clk 0:02:58.4]}
5... a6 {[%clk 0:02:58.8]} 6. O-O {[%clk 0:02:58]} 6... c5 {[%clk 0:02:59.3]} 7.
e4 {[%clk 0:02:55.1]} 7... cxd4 {[%clk 0:02:56.8]} 8. e5 {[%clk 0:02:48.9]} 8...
Nfd7 {[%clk 0:02:52.2]} 9. Re1 {[%clk 0:02:40.3]} 9... Nc6 {[%clk 0:02:51.6]}
10. Bf4 {[%clk 0:02:31.4]} 10... Be7 {[%clk 0:02:44]} 11. Nxd4 {[%clk
0:02:30.1]} 11... O-O {[%clk 0:02:37.3]} 12. Nxc6 {[%clk 0:02:28]} 12... bxc6
{[%clk 0:02:37.4]} 13. Nc3 {[%clk 0:02:26.5]} 13... Rb8 {[%clk 0:02:34.7]} 14.
Qe2 {[%clk 0:02:23.4]} 14... c5 {[%clk 0:02:24.3]} 15. Ne4 {[%clk 0:02:22.8]}
15... Bb7 {[%clk 0:02:19.2]} 16. Nd6 {[%clk 0:02:21.3]} 16... Bxd6 {[%clk
0:02:17.5]} 17. exd6 {[%clk 0:02:20.8]} 17... Qb6 {[%clk 0:02:11]} 18. b3 {[%clk
0:02:20]} 18... Rfe8 {[%clk 0:02:10]} 19. Qg4 {[%clk 0:02:11.4]} 19... Nf6
{[%clk 0:01:56.2]} 20. Qh4 {[%clk 0:02:08.2]} 20... Qc6 {[%clk 0:01:46.1]} 21.
f3 {[%clk 0:02:05.7]} 21... Nd7 {[%clk 0:01:43.3]} 22. Rad1 {[%clk 0:01:59.4]}
22... a5 {[%clk 0:01:25.2]} 23. a4 {[%clk 0:01:56]} 23... Ba6 {[%clk 0:01:24.6]}
24. Bd2 {[%clk 0:01:18.3]} 24... Bxc4 {[%clk 0:01:17.1]} 25. Qxc4 {[%clk
0:01:13.7]} 25... Qb6 {[%clk 0:01:17]} 26. Re3 {[%clk 0:01:07]} 26... Nf6 {[%clk
0:01:15.3]} 27. Bc3 {[%clk 0:00:57.2]} 27... Nd5 {[%clk 0:01:04.2]} 28. Rxd5
{[%clk 0:00:54.1]} 28... exd5 {[%clk 0:01:03.7]} 29. Rxe8+ {[%clk 0:00:52.5]}
29... Rxe8 {[%clk 0:01:03.3]} 30. Qxd5 {[%clk 0:00:53.2]} 30... c4+ {[%clk
0:00:49.7]} 31. Bd4 {[%clk 0:00:37.8]} 31... Qxb3 {[%clk 0:00:46]} 32. h4 {[%clk
0:00:35.8]} 32... Qxa4 {[%clk 0:00:35.9]} 33. d7 {[%clk 0:00:34.7]} 33... Rd8
{[%clk 0:00:35.4]} 34. Qe5 {[%clk 0:00:32.2]} 34... f6 {[%clk 0:00:25]} 35. Qe6+
{[%clk 0:00:27.7]} 35... Kh8 {[%clk 0:00:23.9]} 36. Bxf6 {[%clk 0:00:26.5]}
36... Qxd7 {[%clk 0:00:22.1]} 37. Qe5 {[%clk 0:00:24.6]} 37... gxf6 {[%clk
0:00:21.6]} 38. Qxf6+ {[%clk 0:00:22.4]} 38... Kg8 {[%clk 0:00:22.1]} 39. Qg5+
{[%clk 0:00:19.7]} 39... Kf8 {[%clk 0:00:21.5]} 40. Qf6+ {[%clk 0:00:19.7]}
40... Ke8 {[%clk 0:00:21.2]} 41. Qh8+ {[%clk 0:00:17.8]} 41... Ke7 {[%clk
0:00:21.6]} 42. Qg7+ {[%clk 0:00:17.7]} 42... Kd6 {[%clk 0:00:21.2]} 43. Qd4+
{[%clk 0:00:17.8]} 43... Kc7 {[%clk 0:00:19.9]} 44. Qa7+ {[%clk 0:00:15.6]}
44... Kd6 {[%clk 0:00:19.1]} 45. Qd4+ {[%clk 0:00:15.1]} 45... Ke7 {[%clk
0:00:18.2]} 46. Qg7+ {[%clk 0:00:15.1]} 46... Kd6 {[%clk 0:00:18.6]} 47. Qd4+
{[%clk 0:00:15.2]} 1/2-1/2